fUST/lending_fUST_20250623
["ID","MTS","AMOUNT","RATE_DAILY","PERIOD"]
[367014118,1750618094756,-804.45,0.00041095,120]
[367014119,1750618094785,-460.0,0.00041095,120]
[367014120,1750618094812,-804.45,0.00041095,120]
[367014121,1750618094837,-804.45,0.00041095,120]
[367014122,1750618094869,-460.0,0.00041095,120]
[367014123,1750618094895,-804.45,0.00041095,120]
[367014124,1750618094921,-804.45,0.00041095,120]
[367014125,1750618094947,-460.0,0.00041095,120]
[367014126,1750618094973,-460.0,0.00041095,120]
[367014127,1750618094999,-460.0,0.00041095,120]
[367014128,1750618095026,-460.0,0.00041095,120]
[367014129,1750618095053,-523.04,0.00041095,120]
[367014130,1750618095080,-460.0,0.00041095,120]
[367014131,1750618095106,-460.0,0.00041095,120]
[367014132,1750618095133,-460.0,0.00041095,120]
[367014133,1750618095160,-1232.58,0.00041095,120]
[367014134,1750618095340,-460.0,0.00041095,120]
[367014135,1750618095369,-460.0,0.00041095,120]
[367014136,1750618095396,-460.0,0.00041095,120]
[367014137,1750618095422,-524.31,0.00041095,120]
[367014138,1750618095448,-531.81,0.00041095,120]
[367014139,1750618095477,-460.0,0.00041095,120]
[367014140,1750618095506,-1071.22,0.00041095,120]
[367014141,1750618095535,-500.0,0.00041095,120]
[367014142,1750618095562,-460.0,0.00041095,120]
[367014143,1750618095589,-460.0,0.00041095,120]
[367014144,1750618095617,-460.0,0.00041095,120]
[367014145,1750618095646,-626.48,0.00041095,120]
[367014146,1750618095674,-460.0,0.00041095,120]
[367014147,1750618095701,-460.0,0.00041095,120]
[367014148,1750618095729,-460.0,0.00041095,120]
[367014149,1750618095757,-568.56,0.00041095,120]
[367014150,1750618095785,-460.0,0.00041095,120]
[367014151,1750618095813,-460.0,0.00041095,120]
[367014152,1750618095841,-1237.85,0.00041095,120]
[367014153,1750618095868,-443.46265963,0.00041095,120]
[367014154,1750618095896,-460.0,0.00041095,120]
[367014155,1750618095923,-595.76,0.00041095,120]
[367014156,1750618095948,-460.0,0.00041095,120]
[367014157,1750618095975,-460.0,0.00041095,120]
[367014158,1750618096001,-460.0,0.00041095,120]
[367014159,1750618096027,-460.0,0.00041095,120]
[367014160,1750618096054,-460.0,0.00041095,120]
[367014161,1750618096082,-460.0,0.00041095,120]
[367014162,1750618096109,-460.0,0.00041095,120]
[367014163,1750618096137,-1732.57,0.00041095,120]
[367014164,1750618096164,-460.0,0.00041095,120]
[367014165,1750618096192,-262.26086521,0.00041095,120]
[367014166,1750618096219,-460.0,0.00041095,120]
[367014167,1750618096246,-460.0,0.00041095,120]
[367014168,1750618096272,-460.0,0.00041095,120]
[367014169,1750618096299,-460.0,0.00041095,120]
[367014170,1750618096325,-460.0,0.00041095,120]
[367014171,1750618096352,-460.0,0.00041095,120]
[367014172,1750618096380,-1427.61,0.00041095,120]
[367014173,1750618096407,-460.0,0.00041095,120]
[367014174,1750618096434,-460.0,0.00041095,120]
[367014175,1750618096461,-406.47850141,0.00041095,120]
[367014176,1750618096491,-460.0,0.00041095,120]
[367014177,1750618096518,-205.3529973,0.00041095,120]
[367014178,1750618096547,-460.0,0.00041095,120]
[367014179,1750618096584,-460.0,0.00041095,120]
[367014180,1750618096611,-460.0,0.00041095,120]
[367014181,1750618096638,-460.0,0.00041095,120]
[367014182,1750618096664,-460.0,0.00041095,120]
[367014183,1750618096692,-460.0,0.00041095,120]
[367014184,1750618096719,-460.0,0.00041095,120]
[367014185,1750618096745,-460.0,0.00041095,120]
[367014186,1750618096772,-460.0,0.00041095,120]
[367014187,1750618096799,-460.0,0.00041095,120]
[367014188,1750618096826,-1083.29,0.00041095,120]
[367014189,1750618096854,-411.0,0.00041095,120]
[367014190,1750618096881,-460.0,0.00041095,120]
[367014191,1750618096908,-460.0,0.00041095,120]
[367014192,1750618096935,-460.0,0.00041095,120]
[367014193,1750618096962,-460.0,0.00041095,120]
[367014194,1750618096987,-460.0,0.00041095,120]
[367014195,1750618097013,-407.05722298,0.00041095,120]
[367014196,1750618097039,-460.0,0.00041095,120]
[367014197,1750618097064,-460.0,0.00041095,120]
[367014198,1750618097091,-460.0,0.00041095,120]
[367014199,1750618097124,-460.0,0.00041095,120]
[367014200,1750618097151,-869.47,0.00041095,120]
[367014201,1750618097177,-460.0,0.00041095,120]
[367014202,1750618097205,-1334.0,0.00041095,120]
[367014203,1750618097231,-460.0,0.00041095,120]
[367014204,1750618097258,-460.0,0.00041095,120]
[367014205,1750618097293,-460.0,0.00041095,120]
[367014206,1750618097320,-528.07452443,0.00041095,120]
[367014207,1750618097347,-460.0,0.00041095,120]
[367014208,1750618097375,-460.0,0.00041095,120]
[367014209,1750618097403,-983.72,0.00041095,120]
[367014210,1750618097431,-460.0,0.00041095,120]
[367014211,1750618097459,-460.0,0.00041095,120]
[367014212,1750618097488,-733.82,0.00041095,120]
[367014213,1750618097516,-499.77504656,0.00041095,12]
[367014214,1750618097551,-460.0,0.00041095,120]
[367014215,1750618097583,-460.0,0.00041095,120]
[367014216,1750618097610,-460.0,0.00041095,120]
[367014217,1750618097639,-460.0,0.00041095,120]
[367014218,1750618097671,-460.0,0.00041095,120]
[367014219,1750618097699,-466.98,0.00041095,120]
[367014220,1750618097727,-679.33,0.00041095,120]
[367014221,1750618097756,-866.59,0.00041095,120]
[367014222,1750618097787,-460.0,0.00041095,120]
[367014223,1750618097816,-500.0,0.00041095,14]
[367014224,1750618097845,-460.0,0.00041095,120]
[367014225,1750618097878,-588.65306472,0.00041095,120]
[367014226,1750618097907,-460.0,0.00041095,120]
[367014227,1750618097936,-463.12,0.00041095,120]
[367014228,1750618097965,-300.0,0.00041095,120]
[367014229,1750618097996,-898.15,0.00041095,120]
[367014230,1750618098211,-636.64,0.00041095,120]
[367014231,1750618098240,-460.0,0.00041095,120]
[367014232,1750618098268,-460.0,0.00041095,120]
[367014233,1750618098296,-460.0,0.00041095,120]
[367014234,1750618098325,-460.0,0.00041095,120]
[367014235,1750618098354,-500.0,0.00041095,120]
[367014236,1750618098382,-500.0,0.00041095,120]
[367014237,1750618098409,-500.0,0.00041095,120]
[367014238,1750618098437,-606.94885796,0.00041095,120]
[367014239,1750618098464,-991.8,0.00041095,120]
[367014240,1750618098495,-678.7,0.00041095,120]
[367014241,1750618098523,-1059.62,0.00041095,120]
[367014242,1750618098551,-460.0,0.00041095,120]
[367014243,1750618098582,-4294.95,0.00041095,120]
[367014244,1750618098610,-523.26055691,0.00041095,120]
[367014245,1750618098640,-460.0,0.00041095,120]
[367014246,1750618098669,-460.0,0.00041095,120]
[367014247,1750618098698,-157.4289194,0.00041095,120]
[367014248,1750618098728,-460.0,0.00041095,120]
[367014249,1750618098759,-460.0,0.00041095,120]
[367014250,1750618098789,-1453.52,0.00041095,120]
[367014251,1750618098817,-460.0,0.00041095,120]
[367014252,1750618098847,-460.0,0.00041095,120]
[367014253,1750618098876,-460.0,0.00041095,120]
[367014254,1750618098905,-1520.79,0.00041095,120]
[367014255,1750618098933,-460.0,0.00041095,120]
[367014256,1750618098959,-460.0,0.00041095,120]
[367014257,1750618098986,-1297.24,0.00041095,120]
[367014258,1750618099013,-3646.26,0.00041095,120]
[367014259,1750618099040,-671.96,0.00041095,120]
[367014260,1750618099069,-460.0,0.00041095,120]
[367014261,1750618099097,-460.0,0.00041095,120]
[367014262,1750618099125,-460.0,0.00041095,120]
[367014263,1750618099153,-460.0,0.00041095,120]
[367014264,1750618099180,-497.94707974,0.00041095,120]
[367014265,1750618099209,-477.42,0.00041095,120]
[367014266,1750618099237,-460.0,0.00041095,120]
[367014267,1750618099265,-632.89,0.00041095,120]
[367014268,1750618099293,-460.0,0.00041095,120]
[367014269,1750618099321,-351.12805477,0.00041095,120]
[367014270,1750618099350,-460.0,0.00041095,120]
[367014271,1750618099377,-460.0,0.00041095,120]
[367014272,1750618099404,-4795.91,0.00041095,120]
[367014273,1750618099430,-460.0,0.00041095,120]
[367014274,1750618099457,-460.0,0.00041095,120]
[367014275,1750618099487,-955.59,0.00041095,120]
[367014276,1750618099516,-460.0,0.00041095,120]
[367014277,1750618099547,-460.0,0.00041095,120]
[367014278,1750618099580,-460.0,0.00041095,120]
[367014279,1750618099609,-460.0,0.00041095,120]
[367014280,1750618099638,-460.0,0.00041095,120]
[367014281,1750618099670,-1082.57,0.00041095,120]
[367014282,1750618099701,-460.0,0.00041095,120]
[367014283,1750618099732,-460.0,0.00041095,120]
[367014284,1750618099761,-520.94,0.00041095,120]
[367014285,1750618099791,-460.0,0.00041095,120]
[367014286,1750618099818,-460.0,0.00041095,120]
[367014287,1750618099844,-460.0,0.00041095,120]
[367014288,1750618099871,-460.0,0.00041095,120]
[367014289,1750618099897,-510.01516454,0.00041095,120]
[367014290,1750618099924,-876.44,0.00041095,120]
[367014291,1750618099952,-460.0,0.00041095,120]
[367014292,1750618099979,-460.0,0.00041095,120]
[367014293,1750618100005,-3201.31,0.00041095,120]
[367014294,1750618100031,-382.81792152,0.00041095,120]
[367014295,1750618100056,-569.76,0.00041095,120]
[367014296,1750618100082,-1293.62,0.00041095,120]
[367014297,1750618100108,-460.0,0.00041095,120]
[367014298,1750618100134,-460.0,0.00041095,120]
[367014299,1750618100162,-460.0,0.00041095,120]
[367014300,1750618100188,-460.0,0.00041095,120]
[367014301,1750618100215,-460.0,0.00041095,120]
[367014302,1750618100242,-462.94,0.00041095,120]
[367014303,1750618100268,-460.0,0.00041095,120]
[367014304,1750618100295,-529.71852886,0.00041095,120]
[367014305,1750618100321,-968.24,0.00041095,120]
[367014306,1750618100348,-460.0,0.00041095,120]
[367014307,1750618100377,-460.0,0.00041095,120]
[367014308,1750618100405,-960.82,0.00041095,120]
[367014309,1750618100434,-460.0,0.00041095,120]
[367014310,1750618100462,-460.0,0.00041095,120]
[367014311,1750618100495,-460.0,0.00041095,120]
[367014312,1750618100525,-460.0,0.00041095,120]
[367014313,1750618100556,-460.0,0.00041095,120]
[367014314,1750618100587,-460.0,0.00041095,120]
[367014315,1750618100616,-460.0,0.00041095,120]
[367014316,1750618100646,-460.0,0.00041095,120]
[367014317,1750618100678,-460.0,0.00041095,120]
[367014318,1750618100708,-460.0,0.00041095,120]
[367014319,1750618100736,-3452.1,0.00041095,120]
[367014320,1750618100766,-460.0,0.00041095,120]
[367014321,1750618100796,-460.0,0.00041095,120]
[367014322,1750618100825,-460.0,0.00041095,120]
[367014323,1750618100855,-460.0,0.00041095,120]
[367014324,1750618101038,-567.25,0.00041095,120]
[367014325,1750618101068,-1360.06,0.00041095,120]
[367014326,1750618101099,-505.31,0.00041095,120]
[367014327,1750618101137,-460.0,0.00041095,120]
[367014328,1750618101170,-579.13,0.00041095,120]
[367014329,1750618101200,-460.0,0.00041095,120]
[367014330,1750618101228,-1000.0,0.00041095,120]
[367014331,1750618101257,-460.0,0.00041095,120]
[367014332,1750618101285,-461.59278658,0.00041095,120]
[367014333,1750618101312,-460.0,0.00041095,120]
[367014334,1750618101341,-2315.27,0.00041095,120]
[367014335,1750618101371,-400.0,0.00041095,120]
[367014336,1750618101400,-460.0,0.00041095,120]
[367014337,1750618101427,-368.38001175,0.00041095,120]
[367014338,1750618101457,-563.01230618,0.00041095,120]
[367014339,1750618101487,-641.12,0.00041095,120]
[367014340,1750618101517,-643.34,0.00041095,120]
[367014341,1750618101548,-460.0,0.00041095,120]
[367014342,1750618101579,-460.0,0.00041095,120]
[367014343,1750618101607,-241.41653467,0.00041095,120]
[367014344,1750618101635,-408.25640706,0.00041095,120]
[367014345,1750618101667,-460.0,0.00041095,120]
[367014346,1750618101697,-513.74862691,0.00041095,120]
[367014347,1750618101727,-460.0,0.00041095,120]
[367014348,1750618101757,-383.98123954,0.00041095,120]
[367014349,1750618101787,-2225.86,0.00041095,120]
[367014350,1750618101815,-460.0,0.00041095,120]
[367014351,1750618101846,-460.0,0.00041095,120]
[367014352,1750618101876,-460.0,0.00041095,120]
[367014353,1750618101903,-460.0,0.00041095,120]
[367014354,1750618101932,-460.0,0.00041095,120]
[367014355,1750618101960,-460.0,0.00041095,120]
[367014356,1750618101989,-1004.95,0.00041095,120]
[367014357,1750618102017,-460.0,0.00041095,120]
[367014358,1750618102046,-460.0,0.00041095,20]
[367014359,1750618102074,-460.0,0.00041095,120]
[367014360,1750618102100,-460.0,0.00041095,120]
[367014361,1750618102129,-460.0,0.00041095,120]
[367014362,1750618102156,-1629.43,0.00041095,120]
[367014363,1750618102186,-460.0,0.00041095,120]
[367014364,1750618102214,-460.0,0.00041095,60]
[367014365,1750618102241,-460.0,0.00041095,120]
[367014366,1750618102271,-460.0,0.00041095,120]
[367014367,1750618102297,-460.0,0.00041095,120]
[367014368,1750618102327,-2639.78,0.00041095,120]
[367014369,1750618102353,-460.0,0.00041095,120]
[367014370,1750618102380,-460.0,0.00041095,120]
[367014371,1750618102406,-460.0,0.00041095,120]
[367014372,1750618102433,-466.41,0.00041095,120]
[367014373,1750618102462,-2874.06,0.00041095,120]
[367014374,1750618102492,-460.0,0.00041095,120]
[367014375,1750618102521,-460.0,0.00041095,120]
[367014376,1750618102548,-616.99,0.00041095,120]
[367014377,1750618102579,-2242.43,0.00041095,120]
[367014378,1750618102606,-1104.18,0.00041095,120]
[367014379,1750618102634,-460.0,0.00041095,120]
[367014380,1750618102662,-460.0,0.00041095,120]
[367014381,1750618102689,-460.0,0.00041095,120]
[367014382,1750618102716,-460.0,0.00041095,120]
[367014383,1750618102744,-460.0,0.00041095,120]
[367014384,1750618102770,-612.4,0.00041095,120]
[367014385,1750618102796,-460.0,0.00041095,120]
[367014386,1750618102823,-1164.19,0.00041095,120]
[367014387,1750618102849,-460.0,0.00041095,120]
[367014388,1750618102875,-783.25,0.00041095,120]
[367014389,1750618102900,-460.0,0.00041095,120]
[367014390,1750618102927,-3582.51,0.00041095,120]
[367014391,1750618102953,-460.0,0.00041095,120]
[367014392,1750618102979,-460.0,0.00041095,120]
[367014394,1750618103005,-460.0,0.00041095,120]
[367014395,1750618103030,-946.8,0.00041095,120]
[367014396,1750618103055,-2416.51,0.00041095,120]
[367014397,1750618103079,-460.0,0.00041095,120]
[367014398,1750618103104,-460.0,0.00041095,120]
[367014399,1750618103129,-196.40042402,0.00041095,120]
[367014400,1750618103155,-460.0,0.00041095,12]
[367014401,1750618103182,-460.0,0.00041095,120]
[367014403,1750618103210,-1486.46,0.00041095,120]
[367014404,1750618103237,-1486.46,0.00041095,120]
[367014405,1750618103264,-460.0,0.00041095,120]
[367014407,1750618103293,-1486.46,0.00041095,120]
[367014409,1750618103321,-1486.46,0.00041095,120]
[367014411,1750618103347,-1486.46,0.00041095,120]
[367014413,1750618103376,-502.9,0.00041095,120]
[367014415,1750618103403,-652.73,0.00041095,120]
[367014416,1750618103429,-1486.46,0.00041095,120]
[367014418,1750618103455,-1486.46,0.00041095,120]
[367014420,1750618103485,-1486.46,0.00041095,120]
[367014422,1750618103511,-1486.46,0.00041095,120]
[367014424,1750618103537,-1486.46,0.00041095,120]
[367014430,1750618103727,-1486.46,0.00041095,120]
[367014432,1750618103757,-1486.46,0.00041095,120]
[367014434,1750618103785,-1486.46,0.00041095,120]
[367014436,1750618103813,-1486.46,0.00041095,120]
[367014438,1750618103841,-1486.46,0.00041095,120]
[367014440,1750618103870,-1543.64,0.00041095,120]
[367014441,1750618103902,-1486.46,0.00041095,120]
[367014442,1750618103929,-1486.46,0.00041095,120]
[367014443,1750618103956,-1486.46,0.00041095,120]
[367014444,1750618103984,-460.0,0.00041095,120]
[367014445,1750618104012,-1486.46,0.00041095,120]
[367014447,1750618104039,-1486.46,0.00041095,120]
[367014449,1750618104066,-1486.46,0.00041095,120]
[367014450,1750618104093,-1486.46,0.00041095,120]
[367014452,1750618104121,-460.0,0.00041095,120]
[367014454,1750618104150,-1486.46,0.00041095,120]
[367014456,1750618104179,-460.0,0.00041095,120]
[367014458,1750618104208,-1486.55885188,0.00041095,120]
[367014460,1750618104234,-460.0,0.00041095,120]
[367014461,1750618104262,-460.0,0.00041095,120]
[367014463,1750618104289,-460.0,0.00041095,120]
[367014465,1750618104316,-460.0,0.00041095,120]
[367014467,1750618104345,-839.92,0.00041095,120]
[367014468,1750618104374,-460.0,0.00041095,120]
[367014470,1750618104401,-460.0,0.00041095,120]
[367014472,1750618104428,-754.77,0.00041095,120]
[367014474,1750618104456,-460.0,0.00041095,120]
[367014476,1750618104487,-460.0,0.00041095,120]
[367014477,1750618104514,-460.50411426,0.00041095,120]
[367014479,1750618104544,-6830.6,0.00041095,120]
[367014481,1750618104574,-734.49,0.00041095,21]
[367014483,1750618104600,-460.0,0.00041095,120]
[367014485,1750618104628,-460.0,0.00041095,120]
[367014487,1750618104656,-350.42251365,0.00041095,120]
[367014489,1750618104684,-460.0,0.00041095,120]
[367014491,1750618104712,-460.0,0.00041095,120]
[367014492,1750618104740,-460.0,0.00041095,120]
[367014494,1750618104768,-502.89,0.00041095,120]
[367014496,1750618104794,-460.0,0.00041095,120]
[367014498,1750618104821,-460.0,0.00041095,120]
[367014500,1750618104848,-460.0,0.00041095,120]
[367014502,1750618104877,-754.1,0.00041095,120]
[367014504,1750618104905,-460.0,0.00041095,120]
[367014505,1750618104933,-460.0,0.00041095,120]
[367014507,1750618104961,-460.0,0.00041095,120]
[367014509,1750618104989,-1641.76,0.00041095,120]
[367014511,1750618105016,-460.0,0.00041095,120]
[367014513,1750618105043,-460.0,0.00041095,120]
[367014515,1750618105071,-460.0,0.00041095,120]
[367014516,1750618105099,-9434.45,0.00041095,120]
[367014518,1750618105127,-552.1355503,0.00041095,120]
[367014520,1750618105154,-460.0,0.00041095,120]
[367014522,1750618105181,-460.0,0.00041095,120]
[367014524,1750618105209,-460.0,0.00041095,120]
[367014526,1750618105236,-460.0,0.00041095,120]
[367014527,1750618105263,-822.18,0.00041095,120]
[367014528,1750618105291,-1773.81,0.00041095,120]
[367014529,1750618105317,-460.0,0.00041095,120]
[367014531,1750618105344,-460.0,0.00041095,120]
[367014533,1750618105370,-460.0,0.00041095,120]
[367014535,1750618105398,-460.0,0.00041095,120]
[367014537,1750618105424,-460.0,0.00041095,120]
[367014539,1750618105451,-405.44789143,0.00041095,120]
[367014540,1750618105479,-460.0,0.00041095,120]
[367014542,1750618105512,-8316.4,0.00041095,120]
[367014544,1750618105542,-471.01585315,0.00041095,120]
[367014546,1750618105574,-460.0,0.00041095,120]
[367014548,1750618105603,-4288.07,0.00041095,120]
[367014550,1750618105631,-500.0,0.00041095,120]
[367014552,1750618105661,-639.38,0.00041095,120]
[367014554,1750618105694,-460.0,0.00041095,120]
[367014555,1750618105722,-460.0,0.00041095,120]
[367014557,1750618105751,-460.0,0.00041095,120]
[367014559,1750618105781,-435.34251866,0.00041095,120]
[367014561,1750618105811,-430.0,0.00041095,120]
[367014563,1750618105840,-460.0,0.00041095,120]
[367014565,1750618105868,-460.0,0.00041095,120]
[367014567,1750618105896,-460.0,0.00041095,120]
[367014569,1750618105924,-477.65,0.00041095,120]
[367014570,1750618105951,-1320.19,0.00041095,120]
[367014572,1750618105978,-460.0,0.00041095,120]
[367014574,1750618106005,-460.0,0.00041095,120]
[367014576,1750618106032,-559.0129306,0.00041095,120]
[367014578,1750618106059,-2132.46,0.00041095,120]
[367014580,1750618106085,-6688.69,0.00041095,120]
[367014582,1750618106111,-460.0,0.00041095,120]
[367014584,1750618106137,-538.59,0.00041095,120]
[367014590,1750618106163,-1585.67,0.00041095,120]
[367014592,1750618106353,-460.0,0.00041095,120]
[367014594,1750618106383,-460.0,0.00041095,120]
[367014596,1750618106414,-22289.21,0.00041095,120]
[367014598,1750618106441,-460.0,0.00041095,120]
[367014600,1750618106468,-572.63,0.00041095,120]
[367014602,1750618106500,-460.0,0.00041095,120]
[367014604,1750618106529,-10727.68,0.00041095,120]
[367014606,1750618106557,-460.0,0.00041095,120]
[367014608,1750618106586,-9339.83,0.00041095,120]
[367014610,1750618106614,-470.03,0.00041095,120]
[367014611,1750618106644,-460.0,0.00041095,120]
[367014613,1750618106673,-993.43,0.00041095,120]
[367014615,1750618106702,-460.0,0.00041095,120]
[367014617,1750618106730,-3996.84,0.00041095,120]
[367014619,1750618106760,-460.0,0.00041095,120]
[367014621,1750618106788,-460.0,0.00041095,120]
[367014623,1750618106818,-460.0,0.00041095,120]
[367014625,1750618106846,-519.66,0.00041095,120]
[367014626,1750618106875,-460.0,0.00041095,120]
[367014628,1750618106904,-460.0,0.00041095,120]
[367014630,1750618106931,-621.69,0.00041095,120]
[367014632,1750618106960,-639.6,0.00041095,120]
[367014634,1750618106988,-460.0,0.00041095,120]
[367014636,1750618107016,-460.0,0.00041095,120]
[367014637,1750618107042,-460.0,0.00041095,120]
[367014639,1750618107068,-460.0,0.00041095,120]
[367014641,1750618107094,-966.4,0.00041095,120]
[367014643,1750618107119,-460.0,0.00041095,120]
[367014645,1750618107146,-460.0,0.00041095,120]
[367014646,1750618107172,-960.88,0.00041095,120]
[367014648,1750618107200,-460.0,0.00041095,120]
[367014650,1750618107227,-460.0,0.00041095,120]
[367014652,1750618107255,-460.0,0.00041095,120]
[367014654,1750618107280,-460.0,0.00041095,120]
[367014656,1750618107306,-4547.0,0.00041095,120]
[367014657,1750618107331,-584.96322658,0.00041095,120]
[367014659,1750618107358,-460.0,0.00041095,120]
[367014661,1750618107385,-1977.96,0.00041095,120]
[367014663,1750618107414,-460.0,0.00041095,120]
[367014665,1750618107442,-500.0,0.00041095,120]
[367014666,1750618107469,-572.43127104,0.00041095,120]
[367014668,1750618107500,-500.0,0.00041095,120]
[367014670,1750618107527,-460.0,0.00041095,120]
[367014672,1750618107553,-500.0,0.00041095,120]
[367014674,1750618107581,-500.0,0.00041095,120]
[367014675,1750618107608,-258.13447406,0.00041095,120]
[367014677,1750618107638,-593.21,0.00041095,120]
[367014679,1750618107664,-460.0,0.00041095,120]
[367014681,1750618107692,-933.66,0.00041095,120]
[367014683,1750618107729,-460.0,0.00041095,120]
[367014685,1750618107759,-460.0,0.00041095,120]
[367014687,1750618107789,-1870.23,0.00041095,120]
[367014688,1750618107816,-894.63,0.00041095,120]
[367014690,1750618107842,-460.0,0.00041095,120]
[367014692,1750618107869,-460.0,0.00041095,120]
[367014694,1750618107897,-460.0,0.00041095,120]
[367014696,1750618107924,-460.0,0.00041095,120]
[367014698,1750618107952,-474.67,0.00041095,120]
[367014700,1750618107978,-460.0,0.00041095,120]
[367014702,1750618108006,-460.0,0.00041095,120]
[367014704,1750618108034,-713.62,0.00041095,120]
[367014705,1750618108061,-460.0,0.00041095,120]
[367014707,1750618108088,-460.0,0.00041095,120]
[367014709,1750618108115,-12754.68,0.00041095,120]
[367014711,1750618108140,-239.14999073,0.00041095,120]
[367014713,1750618108166,-460.0,0.00041095,120]
[367014715,1750618108194,-460.0,0.00041095,120]
[367014717,1750618108221,-460.0,0.00041095,120]
[367014719,1750618108246,-460.0,0.00041095,120]
[367014720,1750618108271,-460.0,0.00041095,120]
[367014722,1750618108296,-460.0,0.00041095,120]
[367014724,1750618108322,-460.0,0.00041095,120]
[367014726,1750618108347,-2848.16,0.00041095,120]
[367014728,1750618108372,-460.0,0.00041095,120]
[367014730,1750618108397,-460.0,0.00041095,120]
[367014732,1750618108422,-460.0,0.00041095,120]
[367014733,1750618108450,-1302.28,0.00041095,120]
[367014735,1750618108484,-401.26617227,0.00041095,120]
[367014737,1750618108514,-374.10454074,0.00041095,120]
[367014739,1750618108543,-460.0,0.00041095,120]
[367014741,1750618108573,-460.0,0.00041095,120]
[367014743,1750618108600,-460.0,0.00041095,120]
[367014745,1750618108626,-464.0,0.00041095,120]
[367014747,1750618108654,-460.0,0.00041095,120]
[367014754,1750618108914,-460.0,0.00041095,120]
[367014755,1750618108941,-460.0,0.00041095,120]
[367014756,1750618108967,-832.9,0.00041095,120]
[367014757,1750618108992,-977.48,0.00041095,120]
[367014759,1750618109020,-624.68,0.00041095,120]
[367014760,1750618109047,-629.77,0.00041095,120]
[367014762,1750618109073,-460.0,0.00041095,120]
[367014764,1750618109100,-460.0,0.00041095,120]
[367014766,1750618109126,-1011.44,0.00041095,120]
[367014768,1750618109155,-503.16,0.00041095,120]
[367014770,1750618109184,-460.0,0.00041095,120]
[367014771,1750618109211,-466.15,0.00041095,30]
[367014773,1750618109237,-460.0,0.00041095,120]
[367014775,1750618109263,-521.44255781,0.00041095,120]
[367014777,1750618109288,-460.0,0.00041095,120]
[367014779,1750618109316,-460.0,0.00041095,120]
[367014781,1750618109342,-442.79786375,0.00041095,120]
[367014783,1750618109371,-400.0,0.00041095,120]
[367014785,1750618109400,-460.0,0.00041095,120]
[367014786,1750618109426,-460.0,0.00041095,120]
[367014788,1750618109452,-460.0,0.00041095,120]
[367014790,1750618109481,-1005.62,0.00041095,120]
[367014792,1750618109509,-460.0,0.00041095,120]
[367014794,1750618109535,-460.0,0.00041095,120]
[367014796,1750618109566,-460.0,0.00041095,120]
[367014798,1750618109594,-12237.92,0.00041095,120]
[367014799,1750618109619,-460.0,0.00041095,120]
[367014801,1750618109649,-460.0,0.00041095,120]
[367014803,1750618109675,-460.0,0.00041095,120]
[367014805,1750618109702,-460.0,0.00041095,120]
[367014807,1750618109728,-469.80495774,0.00041095,120]
[367014808,1750618109754,-460.0,0.00041095,120]